[Event "Israeli Championship 2022"]
[Site "Yosiah Arad"]
[Date "2022.12.09"]
[Round "5.6"]
[White "Mikhalevski, Victor"]
[Black "Rozen, Eytan"]
[Result "1/2-1/2"]
[ECO "D78"]
[WhiteElo "2517"]
[BlackElo "2459"]
[Annotator "TA"]
[PlyCount "75"]
[EventDate "2022.12.05"]
[EventType "swiss"]
[EventCountry "ISR"]
[SourceTitle "playchess.com"]
[Source "ChessBase"]
[SourceQuality "1"]
[TimeControl "40/5400+30:1800+30"]

{[%evp 18,75,37,35,38,30,39,32,48,56,60,52,77,52,68,31,72,72,66,64,69,74,74,58,75,50,35,42,29,22,33,22,18,26,15,22,14,15,30,17,19,7,10,10,8,7,9,8,11,0,0,0,0,0,0,0,0,0,0,0]} 1. Nf3 {[%emt 0:02:31]} d5 {[%emt 0:01:13]} 2. g3 {[%emt 0:00:16]} g6 {[%emt 0:01:22]} 3. Bg2 {[%emt 0:01:16]} Bg7 {[%emt 0:00:06]} 4. O-O {[%emt 0:00:22]} Nf6 {[%emt 0:00:11]} 5. c4 {[%emt 0:00:17]} c6 {[%emt 0:00:06]} 6. b3 {[%emt 0:00:26]} Ne4 {[%emt 0:00:09]} 7. d4 {[%emt 0:00:09]} O-O {[%emt 0:00:10]} 8. Bb2 {[%emt 0:00:09]} Nd7 {[%emt 0:02:28][%cal Bb8d7,Bd7f6,Bf6e4][%mdl 32]} 9. Nbd2 {[%emt 0:01:49]} (9. a4 a5 10. cxd5 cxd5 11. Na3 b6 12. Nb5 Ba6 13. Qd3 Rc8 14. Rfc1 e6 15. Qd1 Rxc1 16. Rxc1 Qb8 17. Nc7 Bb7 18. Bh3 Ndc5 19. Nb5 {½-½ (45) Mikhalevski,V (2552)-Rozen,E (2399) Jerusalem 2021}) 9... Ndf6 {[%emt 0:01:24]} 10. Ne5 {[%emt 0:00:39]} Qa5 {[%emt 0:01:44] D78: Fianchetto Grünfeld: 6 0-0 c6.} 11. Nxe4 {[%emt 0:03:47]} Nxe4 {[%emt 0:01:12]} 12. Qc2 {[%emt 0:00:15]} (12. Qc1 {looks sharper.} Be6 13. Rd1 Rac8 14. Nd3) 12... Nf6 {[%emt 0:18:17] [#] White is slightly better.} 13. e3 $146 {[%emt 0:22:33]} ({Predecessor:} 13. Bc3 Qb6 14. e3 Bf5 15. Qe2 h5 16. Bb2 a5 17. Ba3 Rfe8 18. cxd5 cxd5 19. Rfc1 {½-½ (51) Huebner,R (2605)-Van Wely,L (2560) Garmisch Partenkirchen 1994}) 13... Be6 {[%emt 0:14:02]} 14. Rfc1 {[%emt 0:07:42]} Rac8 {[%emt 0:03:08]} 15. a4 {[%emt 0:01:35]} Rfd8 {[%emt 0:08:40]} 16. Qe2 {[%emt 0:10:18]} Nd7 {[%emt 0:07:26]} 17. Nd3 {[%emt 0:01:07] White is more active.} Bf5 {[%emt 0:01:06]} 18. Bc3 {[%emt 0:07:54]} Bxd3 {[%emt 0:00:15]} 19. Qxd3 {[%emt 0:00:26]} Qa6 {[%emt 0:00:03]} 20. Qb1 {[%emt 0:07:43]} e5 {[%emt 0:09:56]} 21. Bf1 {[%emt 0:09:21] [#] c5 is the strong threat.} (21. dxe5 {feels hotter.} Nxe5 22. cxd5 cxd5 23. Bd4) 21... Qb6 {[%emt 0:03:51]} 22. a5 {[%emt 0:05:34]} (22. c5 $5 Qc7 $8 23. Qd3 $11) 22... Qc7 {[%emt 0:00:05]} 23. a6 {[%emt 0:00:34] Hoping for axb7.} exd4 {[%emt 0:01:24]} 24. Bxd4 {[%emt 0:01:51]} Bxd4 {[%emt 0:02:01]} 25. exd4 {[%emt 0:00:11] [#] Strongly threatening cxd5.} dxc4 {[%emt 0:01:43]} 26. axb7 {[%emt 0:00:09]} Qxb7 {[%emt 0:00:51]} 27. bxc4 {[%emt 0:00:17]} Qxb1 {[%emt 0:02:07]} 28. Rcxb1 {[%emt 0:00:04]} Rc7 {[%emt 0:00:33] The position is equal.} 29. Ra6 {[%emt 0:05:04]} Nf8 {[%emt 0:01:32]} 30. Rd1 {[%emt 0:00:32]} Ne6 {[%emt 0:01:13]} 31. d5 {[%emt 0:00:12]} cxd5 {[%emt 0:00:09]} 32. cxd5 {[%emt 0:00:04]} Nc5 {[%emt 0:01:39] Prevents d6.} 33. Rc6 {[%emt 0:01:44]} Rxc6 {[%emt 0:00:28]} 34. dxc6 {[%emt 0:00:05]} Rc8 {[%emt 0:00:05]} (34... Rxd1 $2 35. c7 Kg7 36. c8=Q $18 (36. c8=B $2 {perishes.} a5 $19)) 35. Bg2 {[%emt 0:00:11]} Ne6 {[%emt 0:02:32]} 36. Rd7 {[%emt 0:03:56]} Rc7 {[%emt 0:01:08]} 37. Rd2 {[%emt 0:01:00]} Kf8 {[%emt 0:00:19]} 38. f4 {[%emt 0:03:11] Weighted Error Value: White=0.07 (flawless) /Black=0.05 (flawless)} 1/2-1/2

[Event "Israeli Championship 2022"]
[Site "Yosiah Arad"]
[Date "2022.12.09"]
[Round "5.7"]
[White "Postny, Evgeny"]
[Black "Levin, Guy"]
[Result "1/2-1/2"]
[ECO "D26"]
[WhiteElo "2588"]
[BlackElo "2382"]
[Annotator "TA"]
[PlyCount "105"]
[EventDate "2022.12.05"]
[EventType "swiss"]
[EventCountry "ISR"]
[SourceTitle "playchess.com"]
[Source "ChessBase"]
[SourceQuality "1"]
[TimeControl "40/5400+30:1800+30"]

{[%evp 12,105,27,25,25,19,21,24,33,14,15,14,15,10,20,20,17,11,2,0,0,0,11,0,0,0,39,35,71,56,60,61,60,66,69,69,60,54,109,110,120,129,141,122,200,176,184,177,172,172,165,166,243,143,136,143,136,118,185,139,139,142,135,101,96,12,236,237,229,92,92,92,137,116,139,101,149,149,149,149,189,61,67,56,85,16,16,0,0,0,0,0,0,0,0,0]} 1. c4 {[%emt 0:00:55]} e6 {[%emt 0:02:07]} 2. d4 {[%emt 0:00:31]} d5 {[%emt 0:00:06]} 3. Nf3 {[%emt 0:00:51]} Nf6 {[%emt 0:00:08]} 4. e3 {[%emt 0:00:35]} dxc4 {[%emt 0:00:26]} 5. Bxc4 {[%emt 0:00:10]} a6 {[%emt 0:00:06]} 6. O-O {[%emt 0:00:21]} b5 {[%emt 0:00:04]} 7. Be2 $1 {[%emt 0:00:46][%mdl 4] is now more promising than 7.Bd3.} Bb7 {[%emt 0:00:08] D26: Queen's Gambit Accepted: 4 e3 e6 5 Bxc5 c5 sidelines.} 8. a4 {[%emt 0:02:08]} b4 {[%emt 0:01:51]} 9. b3 {[%emt 0:00:19]} Be7 {[%emt 0:00:11] White has an edge.} 10. Bb2 {[%emt 0:00:21]} Nbd7 {[%emt 0:00:21]} 11. Nbd2 {[%emt 0:00:16][%cal Bb1d2,Bd2c4,Bc4e5][%mdl 32]} O-O {[%emt 0:00:11]} 12. Nc4 {[%emt 0:00:34]} c5 {[%emt 0:00:15]} 13. Nfe5 {[%emt 0:03:02]} cxd4 {[%emt 0:06:38]} (13... Rc8 {keeps more tension.} 14. Bf3 Bd5 15. Rc1 Qc7) 14. Bxd4 {[%emt 0:00:50]} Nxe5 {[%emt 0:04:04]} 15. Nxe5 {[%emt 0:12:07]} (15. Bxe5 {simplifies} Nd7 16. Bd4 Bf6 17. Bxf6 Nxf6 18. Qxd8 Rfxd8 19. Rfd1) 15... Rc8 {[%emt 0:07:13]} 16. Rc1 {[%emt 0:13:40]} Nd5 {[%emt 0:04:56]} 17. Bf3 {[%emt 0:03:44]} Bf6 {[%emt 0:06:30]} 18. Qd3 {[%emt 0:04:28]} Qe7 {[%emt 0:09:04][%cal Od5c3] [#]} 19. Bxd5 $146 {[%emt 0:09:43]} ({Predecessor:} 19. Rfd1 Rfd8 20. Rxc8 Rxc8 21. Nc4 Bxd4 22. Qxd4 Nc3 23. Qd6 Qxd6 24. Rxd6 Nd5 25. h3 {1-0 (58) Osmak,I (2438)-Balajayeva,K (2376) Tornelo INT 2020}) 19... Bxd5 {[%emt 0:08:44]} 20. Qxa6 {[%emt 0:13:44]} Rxc1 {[%emt 0:01:22]} 21. Rxc1 {[%emt 0:00:03]} Bxe5 $1 {[%emt 0:00:12]} 22. Bxe5 {[%emt 0:00:06]} Qg5 {[%emt 0:00:07][%csl Gd5][%cal Rg5g2]} 23. Bg3 {[%emt 0:00:08]} h5 {[%emt 0:07:44]} 24. h4 $1 {[%emt 0:05:35]} Qg6 {[%emt 0:01:41]} (24... Qg4 $1 $14) 25. Qb6 $36 {[%emt 0:00:38][%mdl 2048] White is in control.} Qe4 {[%emt 0:02:19][%csl Gd5][%cal Re4g2]} 26. f3 {[%emt 0:00:22]} Qd3 {[%emt 0:01:25]} 27. Be1 {[%emt 0:02:23]} (27. Qxb4 $2 Qxe3+ 28. Kh2 Qxc1 $19) 27... Kh7 {[%emt 0:12:57]} (27... Bxb3 $16 {was called for.} 28. Bxb4 Re8) 28. e4 {[%emt 0:13:08]} ({Don't play} 28. Bxb4 $6 Rb8 29. Qxb8 Qxe3+ 30. Kh2 Qxc1 $16) 28... Bxb3 {[%emt 0:01:37]} 29. Bxb4 {[%emt 0:00:11]} Rd8 {[%emt 0:05:11]} 30. a5 {[%emt 0:00:07]} Rd4 {[%emt 0:02:06]} 31. Kh2 $1 {[%emt 0:06:00] Black must now prevent Rc3.} Qe3 {[%emt 0:00:54] [#]} (31... Rc4 $142 32. Rxc4 Bxc4) 32. Bd6 {[%emt 0:03:14]} (32. Re1 $1 $18 {[%cal Re1e3]} Qf2 33. a6 Qxh4+ 34. Kg1) 32... Qxc1 {[%emt 0:00:47]} 33. Qxd4 {[%emt 0:00:04][%mdl 4096] Endgame a6 is the strong threat. KQB-KQB} Qe1 {[%emt 0:00:09]} 34. Qb4 {[%emt 0:04:14]} Qxh4+ {[%emt 0:06:42]} 35. Kg1 {[%emt 0:00:04]} Ba4 {[%emt 0:00:19]} 36. a6 {[%emt 0:01:42][%cal Ba5a6,Ba6a7][%mdl 32]} ({Much weaker is} 36. Qxa4 $6 Qe1+ 37. Kh2 Qh4+ 38. Kg1 Qe1+ 39. Kh2 Qh4+ 40. Kg1 $11) 36... Bc6 {[%emt 0:00:51]} 37. a7 {[%emt 0:00:22]} f5 {[%emt 0:01:25]} 38. Qc3 {[%emt 0:00:51]} (38. exf5 $16 Qxb4 39. Bxb4 exf5 40. f4) 38... Ba8 $2 {[%emt 0:02:01]} (38... fxe4 $1 $11 {and Black stays safe.} 39. f4 (39. Qxc6 Qe1+ 40. Kh2 Qh4+ 41. Kg1 Qe1+ 42. Kh2 Qh4+ 43. Kg1 $11) 39... Bd5) 39. exf5 $18 {[%emt 0:01:00]} exf5 {[%emt 0:00:16] [#]} 40. Be5 {[%emt 0:00:29]} (40. Qe3 $1 $18 {and White stays clearly on top.}) 40... Qe7 $16 {[%emt 0:00:40]} 41. Qd4 {[%emt 0:01:34]} Qg5 {[%emt 0:08:13]} 42. Kf2 {[%emt 0:02:46]} Qe7 {[%emt 0:00:37]} 43. Kg3 {[%emt 0:03:53]} Qg5+ {[%emt 0:02:45]} (43... g5 $142 44. Bd6 Qe1+ 45. Kh2 Qh4+ 46. Qxh4 gxh4) 44. Kh3 {[%emt 0:00:17] White is more active.} Qe7 {[%emt 0:00:08]} 45. Bd6 {[%emt 0:01:54]} Qd7 {[%emt 0:02:01]} 46. Qc5 {[%emt 0:01:10]} (46. Kh2 $18) 46... g5 $1 $14 {[%emt 0:01:15][%cal Bg7g5,Bg5g4][%mdl 32]} 47. Be5 {[%emt 0:06:11]} g4+ $1 {[%emt 0:01:26]} 48. Kg3 {[%emt 0:03:37]} ({White should play} 48. Kh2 $16 {aiming for Qf8.} Kg8 49. Qc1) 48... h4+ $1 $11 {[%emt 0:02:45] The position is equal.} 49. Kxh4 {[%emt 0:00:23] White wants to mate with Qf8.} Qd8+ {[%emt 0:00:36]} 50. Kg3 {[%emt 0:02:59] Hoping for Bd4.} gxf3 {[%emt 0:00:05]} 51. gxf3 {[%emt 0:02:10]} Qg5+ {[%emt 0:00:04]} 52. Kf2 {[%emt 0:00:25] And now Qc7+ would win.} Qd2+ {[%emt 0:00:10]} 53. Kg3 {[%emt 0:00:10] Black defended with fortune.   Weighted Error Value: White=0.20 (precise) /Black=0.16 (very precise)} 1/2-1/2

[Event "Israeli Championship 2022"]
[Site "Yosiah Arad"]
[Date "2022.12.09"]
[Round "5.8"]
[White "Gorodetzky, David"]
[Black "Aizenberg, Benny"]
[Result "1-0"]
[ECO "D94"]
[WhiteElo "2495"]
[BlackElo "2375"]
[Annotator "TA"]
[PlyCount "95"]
[EventDate "2022.12.05"]
[EventType "swiss"]
[EventCountry "ISR"]
[SourceTitle "playchess.com"]
[Source "ChessBase"]
[SourceQuality "1"]
[TimeControl "40/5400+30:1800+30"]

{[%evp 19,95,0,15,0,57,48,63,41,62,58,84,88,109,121,118,105,105,95,243,233,289,272,311,145,231,216,471,449,449,460,446,375,522,517,662,650,660,639,679,675,1028,1024,1025,1029,966,929,3106,2690,3051,2866,2100,1100,29979,2039,6478,6295,2942,843,1096,1080,1051,1025,998,985,1860,1761,4886,2312,29985,29985,29987,29988,29991,29987,29992,29993,29995,29994]} 1. d4 {[%emt 0:00:02]} Nf6 {[%emt 0:00:07]} 2. c4 {[%emt 0:00:05]} g6 {[%emt 0:00:03]} 3. Nc3 {[%emt 0:01:00]} d5 {[%emt 0:00:04]} 4. e3 {[%emt 0:03:14]} Bg7 {[%emt 0:00:12]} 5. cxd5 {[%emt 0:00:07]} Nxd5 {[%emt 0:00:06]} 6. Bc4 {[%emt 0:00:06]} Nb6 {[%emt 0:03:26]} 7. Bb3 {[%emt 0:02:01]} O-O {[%emt 0:00:13]} 8. Nf3 {[%emt 0:01:16]} Nc6 {[%emt 0:01:16]} 9. O-O {[%emt 0:03:03]} e5 {[%emt 0:07:08]} 10. d5 {[%emt 0:00:35]} Na5 {[%emt 0:00:08]} 11. e4 {[%emt 0:00:07] D94: Grünfeld: 4 Nf3 Bg7 5 e3.} Nxb3 {[%emt 0:02:49] was the old line (11...Bg4).} ({Black should play} 11... Bg4 $11) 12. Qxb3 $14 {[%emt 0:03:29]} c6 {[%emt 0:00:26]} 13. Bg5 {[%emt 0:05:58] White is slightly better.} Qe8 {[%emt 0:00:42] [#]} 14. Rfe1 $146 {[%emt 0:09:10] White has more active pieces. The black rooks are badly placed.} ({Predecessor:} 14. Be3 cxd5 15. exd5 Nd7 16. Nb5 Qd8 17. Nxa7 e4 18. Nd2 f5 19. Nxc8 Rxc8 20. f4 {1-0 (29) Rychtecky,M (2005)-Kavalir,J (1775) Czech Republic 2004}) 14... Bg4 {[%emt 0:08:44]} 15. Nd2 {[%emt 0:01:43]} h6 {[%emt 0:03:41]} 16. Be3 {[%emt 0:01:16]} Qd8 {[%emt 0:00:08]} 17. a4 {[%emt 0:04:31][%cal Ba2a4,Ba4a5][%mdl 32]} cxd5 {[%emt 0:10:02]} 18. exd5 {[%emt 0:02:07][%cal Be4d5,Bd5d6,Bd6d7][%mdl 32]} f5 {[%emt 0:00:10]} (18... Nd7 $16 {is a better defense.}) 19. a5 $18 {[%emt 0:22:50]} Nc8 {[%emt 0:01:25]} 20. Nc4 {[%emt 0:06:36]} (20. Qxb7 Nd6 21. Qa6 Rf6 $16) 20... e4 {[%emt 0:11:20]} 21. Bf4 {[%emt 0:04:37]} (21. Qxb7 $18 Nd6 22. Nxd6 Qxd6 23. Bxa7) 21... g5 {[%emt 0:15:04] [#]} (21... Bxc3 $16 {was called for.} 22. Qxc3 g5) 22. Be5 $1 {[%emt 0:01:09]} ({Don't play} 22. Qxb7 $6 gxf4 23. Qxa8 Qg5 $16) 22... Qe7 {[%emt 0:00:24]} (22... Bxe5 23. Nxe5 Nd6 24. Nxg4 fxg4 25. Nxe4 Nxe4) 23. d6 {[%emt 0:06:12]} Qf7 {[%emt 0:00:54] ...Bxe5 is the strong threat.} 24. Bxg7 {[%emt 0:01:07]} Kxg7 {[%emt 0:00:14]} 25. Qb5 {[%emt 0:02:55]} Kg8 {[%emt 0:09:06]} 26. d7 {[%emt 0:03:09]} Ne7 {[%emt 0:00:12]} 27. Ne5 {[%emt 0:02:09] Against a6} Qe6 {[%emt 0:00:12]} 28. Nxg4 {[%emt 0:01:18]} fxg4 {[%emt 0:00:07]} 29. Nxe4 {[%emt 0:03:10]} Nc6 {[%emt 0:01:33]} 30. Rad1 {[%emt 0:00:45]} a6 {[%emt 0:00:47]} 31. Qb6 {[%emt 0:04:04]} Qf5 {[%emt 0:00:06]} 32. Qxb7 {[%emt 0:01:12]} Nxa5 {[%emt 0:00:26]} 33. Qc7 {[%emt 0:01:41]} Rad8 {[%emt 0:00:28]} 34. b4 {[%emt 0:00:35]} Nb3 {[%emt 0:00:29]} 35. Qc3 {[%emt 0:00:57]} Qf7 {[%emt 0:02:39]} 36. Rd3 {[%emt 0:00:26]} (36. Rd6 $142 Qg7 37. Qxb3+ Kh8 38. Nc5 h5 39. Qd3 h4 40. Rg6 Qf7 41. Qd4+ (41. Rxg5 $2 {leads to mate.} Qxf2+ 42. Kh1 Qxe1+) 41... Kh7 42. Rxg5) 36... Rxd7 {[%emt 0:02:50]} 37. Rxd7 {[%emt 0:00:11]} Qxd7 {[%emt 0:00:04]} 38. Qxb3+ {[%emt 0:00:07]} (38. Nf6+ $142 Rxf6 39. Qxf6) 38... Kg7 {[%emt 0:00:07]} 39. Qc3+ {[%emt 0:01:07]} Kg6 {[%emt 0:00:07]} 40. Nc5 {[%emt 0:01:29]} Qf5 {[%emt 0:00:40]} 41. Qe3 {[%emt 0:30:42]} (41. Nxa6 $2 {gets mated.} Qxf2+ 42. Kh1 {[#]} Qf1+ $3 {[%mdl 512]} 43. Rxf1 Rxf1#) 41... Kh5 {[%emt 0:30:44]} 42. Nxa6 {[%emt 0:00:00]} Qd5 {[%emt 0:00:00]} 43. Nc5 {[%emt 0:00:00]} Qc4 {[%emt 0:00:00]} 44. Nd3 {[%emt 0:00:00] White mates.} Rd8 {[%emt 0:00:00]} 45. Ne5 {[%emt 0:00:00]} Qxb4 {[%emt 0:00:00]} 46. Nc6 {[%emt 0:00:00]} Qb5 {[%emt 0:00:00]} 47. Nxd8 {[%emt 0:00:00]} Kh4 {[%emt 0:00:00]} 48. h3 {[%emt 0:00:00] White took control after the opening.   Weighted Error Value: White=0.15 (very precise) /Black=0.97} 1-0

[Event "Israeli Championship 2022"]
[Site "Yosiah Arad"]
[Date "2022.12.09"]
[Round "5.9"]
[White "Iliaguev, Nisim"]
[Black "Zanan, Evgeny"]
[Result "0-1"]
[ECO "D02"]
[WhiteElo "2364"]
[BlackElo "2485"]
[Annotator "TA"]
[PlyCount "68"]
[EventDate "2022.12.05"]
[EventType "swiss"]
[EventCountry "ISR"]
[SourceTitle "playchess.com"]
[Source "ChessBase"]
[SourceQuality "1"]
[TimeControl "40/5400+30:1800+30"]

{[%evp 9,68,9,20,0,19,16,26,0,0,0,0,0,0,0,0,0,0,0,0,-19,-18,-33,-34,-26,-28,-51,-22,-66,-38,-94,-96,-163,-168,-156,-154,-164,-154,-165,-150,-264,-142,-128,-117,-133,-86,-101,-50,-183,-175,-169,-69,-272,-227,-345,-298,-562,-540,-1335,-1310,-29978,-1013]} 1. g3 {[%emt 0:00:04]} d5 {[%emt 0:02:59]} 2. Bg2 {[%emt 0:00:09]} g6 {[%emt 0:00:27]} 3. Nf3 {[%emt 0:00:48]} Bg7 {[%emt 0:00:06]} 4. d4 {[%emt 0:00:09]} Nd7 {[%emt 0:00:05]} 5. O-O {[%emt 0:00:25]} Ngf6 {[%emt 0:00:03]} 6. Ne5 {[%emt 0:03:04] D02: 1 d4 d5 2 Nf3 sidelines, including 2...Nf6 3 g3 and 2...Nf6 3 Bf4.} c6 {[%emt 0:04:00]} 7. c4 {[%emt 0:00:55]} Ne4 {[%emt 0:06:07] [#]} 8. Nxd7 $146 {[%emt 0:06:37] White has an edge.} ({Predecessor:} 8. cxd5 cxd5 9. Qb3 Nxe5 10. dxe5 O-O 11. Be3 Be6 12. Bd4 Qc7 13. f3 Nc5 14. Qe3 {0-1 (76) Bologan,V (2678)-Smirin,I (2661) Paks 2011}) 8... Bxd7 {[%emt 0:04:15]} 9. cxd5 {[%emt 0:03:36]} cxd5 {[%emt 0:06:18]} 10. Nc3 {[%emt 0:00:44]} Nxc3 {[%emt 0:03:10]} 11. bxc3 {[%emt 0:00:03]} Bc6 {[%emt 0:00:07]} 12. h4 {[%emt 0:05:06]} O-O {[%emt 0:02:38]} 13. Qb3 {[%emt 0:01:39]} e6 {[%emt 0:06:00]} 14. Bd2 {[%emt 0:06:30]} Qd7 {[%emt 0:01:28]} 15. a4 {[%emt 0:00:25]} b5 {[%emt 0:03:16][%cal Rb5a4]} 16. a5 {[%emt 0:01:17]} a6 {[%emt 0:02:12]} 17. Bf3 {[%emt 0:05:31]} h6 {[%emt 0:05:21]} 18. Rfe1 {[%emt 0:05:54]} Rac8 {[%emt 0:07:47]} 19. h5 {[%emt 0:03:44]} (19. Bc1 $15) 19... g5 $17 {[%emt 0:01:13]} 20. e4 {[%emt 0:00:26]} (20. Bc1 $17) 20... dxe4 $19 {[%emt 0:00:36]} 21. Bxe4 {[%emt 0:00:12]} Bxe4 {[%emt 0:00:09]} 22. Rxe4 {[%emt 0:00:09]} Rc4 {[%emt 0:00:07]} 23. Rae1 {[%emt 0:05:56]} e5 {[%emt 0:04:35]} 24. Bc1 {[%emt 0:03:15] [#]} (24. Qb1 $17) 24... exd4 {[%emt 0:01:21]} ({Better is} 24... f5 $1 $19 {[%cal Rf5e4]} 25. Rxe5 Bxe5 26. dxe5 Qe6) 25. cxd4 $17 {[%emt 0:01:09]} Bxd4 {[%emt 0:05:41]} 26. Be3 {[%emt 0:11:53] aiming for Rd1.} Bxe3 {[%emt 0:04:39]} (26... Re8 $142 27. Bxd4 Rxe4 28. Rxe4 Rxd4) 27. R4xe3 {[%emt 0:01:13]} Qd2 {[%emt 0:05:28]} (27... Rd8 $17 28. Re7 Qc6) 28. Qa3 {[%emt 0:18:21]} ({White should play} 28. Rd1 $15 Rc1 29. Rd3 Rxd1+ 30. Qxd1 Qxd1+ 31. Rxd1) 28... Rc2 $19 {[%emt 0:03:18]} 29. Rf1 {[%emt 0:03:15]} b4 {[%emt 0:07:31]} (29... Rd8 $19 {White must now prevent ...b4.} 30. Qe7 Qd6) 30. Qa1 $2 {[%emt 0:05:51] [#]} (30. Qb3 $15) 30... Rc3 $1 {[%emt 0:05:12]} 31. Rd1 {[%emt 0:04:24]} (31. Qe1 {was called for.} Qd4 32. Qe2) 31... Qc2 {[%emt 0:00:20] Threatens to win with ...Rxe3.} 32. Rxc3 {[%emt 0:00:21]} (32. Qb1 Qxb1 33. Rxb1 Rxe3 34. fxe3) 32... bxc3 {[%emt 0:04:08]} ({Not} 32... Qxc3 33. Qb1 $17) 33. Rd6 {[%emt 0:02:18]} Rb8 {[%emt 0:00:45] ( -> ...Rb1+)} 34. Rb6 {[%emt 0:00:34] Prevents Rb1+.} Rd8 {[%emt 0:01:31] Weighted Error Value: White=0.84/Black=0.18 (very precise)} (34... Rxb6 $142 35. axb6 Qb2 36. Qe1 c2 37. b7 Qxb7 38. Qe8+ Kh7 39. Qe1 Qb1 40. Kf1 Qxe1+ 41. Kxe1 c1=Q+ 42. Ke2 a5 43. Kf3 a4 44. Ke4 a3 45. f4 a2 46. fxg5 hxg5 47. g4 Qc4+ 48. Ke5 a1=Q+ 49. Kd6 Qf6+ 50. Kd7 Qcc6#) 0-1